[Event "Titled Tuesday Blitz June 13 Late 2023"]
[White "Kleiman, Jake"]
[Black "Wizard_of_Odds"]
[WhiteFideId "2020041"]
[WhiteElo "2650"]
[BlackElo "2480"]
[Result "1-0"]
[Round "6"]
[TimeControl "180+2"]
[Date "2023.06.13"]
[WhiteClock "0:00:15"]
[BlackClock "0:00:00"]
[Board "65"]

1. e4 {[%clk 0:02:58]}  c5 {[%clk 0:02:59]} 2. c3 {[%clk 0:02:58]}  e6 {[%clk 0:02:59]} 3. d4 {[%clk 0:02:58]}  d5 {[%clk 0:02:59]} 4. exd5 {[%clk 0:02:59]}  exd5 {[%clk 0:03:00]} 5. Nf3 {[%clk 0:03:00]}  Nc6 {[%clk 0:03:00]} 6. Bb5 {[%clk 0:03:00]}  Bd6 {[%clk 0:03:00]} 7. dxc5 {[%clk 0:03:01]}  Bxc5 {[%clk 0:03:00]} 8. O-O {[%clk 0:03:01]}  Ne7 {[%clk 0:03:00]} 9. Nbd2 {[%clk 0:03:02]}  O-O {[%clk 0:03:00]} 10. Nb3 {[%clk 0:03:03]}  Bd6 {[%clk 0:03:01]} 11. Bd3 {[%clk 0:03:03]}  h6 {[%clk 0:02:59]} 12. h3 {[%clk 0:03:03]}  Re8 {[%clk 0:02:58]} 13. Re1 {[%clk 0:03:03]}  Bd7 {[%clk 0:02:56]} 14. Be3 {[%clk 0:03:02]}  a6 {[%clk 0:02:56]} 15. Bc5 {[%clk 0:03:02]}  Qc7 {[%clk 0:02:55]} 16. Qc2 {[%clk 0:02:55]}  Rac8 {[%clk 0:02:45]} 17. Bxd6 {[%clk 0:02:54]}  Qxd6 {[%clk 0:02:45]} 18. Qd2 {[%clk 0:02:51]}  Rcd8 {[%clk 0:02:26]} 19. Nbd4 {[%clk 0:02:49]}  Qf6 {[%clk 0:02:24]} 20. Rad1 {[%clk 0:02:41]}  Bc8 {[%clk 0:02:12]} 21. Re3 {[%clk 0:02:32]}  Kf8 {[%clk 0:01:48]} 22. Rde1 {[%clk 0:02:31]}  Bd7 {[%clk 0:01:37]} 23. Bc2 {[%clk 0:02:12]}  g6 {[%clk 0:01:28]} 24. Nxc6 {[%clk 0:02:04]}  Bxc6 {[%clk 0:01:24]} 25. Ne5 {[%clk 0:01:58]}  Kg7 {[%clk 0:01:06]} 26. Rf3 {[%clk 0:01:53]}  Nf5 {[%clk 0:01:02]} 27. Ng4 {[%clk 0:01:44]}  Rxe1+ {[%clk 0:00:59]} 28. Qxe1 {[%clk 0:01:45]}  Qe6 {[%clk 0:00:54]} 29. Qc1 {[%clk 0:01:36]}  d4 {[%clk 0:00:46]} 30. Rd3 {[%clk 0:01:03]}  h5 {[%clk 0:00:41]} 31. Nh2 {[%clk 0:01:01]}  Qxa2 {[%clk 0:00:36]} 32. Nf3 {[%clk 0:00:45]}  Be4 {[%clk 0:00:31]} 33. Rd1 {[%clk 0:00:39]}  d3 {[%clk 0:00:22]} 34. Bb1 {[%clk 0:00:35]}  Qd5 {[%clk 0:00:21]} 35. c4 {[%clk 0:00:30]}  Qc6 {[%clk 0:00:11]} 36. Qc3+ {[%clk 0:00:28]}  f6 {[%clk 0:00:10]} 37. Ne1 {[%clk 0:00:25]}  d2 {[%clk 0:00:07]} 38. Bxe4 {[%clk 0:00:22]}  Qxe4 {[%clk 0:00:05]} 39. Nf3 {[%clk 0:00:22]}  Qe2 {[%clk 0:00:04]} 40. Rxd2 {[%clk 0:00:22]}  Rxd2 {[%clk 0:00:03]} 41. Qxd2 {[%clk 0:00:20]}  Qxc4 {[%clk 0:00:03]} 42. g3 {[%clk 0:00:18]}  Qc6 {[%clk 0:00:02]} 43. Qd3 {[%clk 0:00:17]}  Nd6 {[%clk 0:00:02]} 44. Nd4 {[%clk 0:00:16]}  Qd5 {[%clk 0:00:02]} 45. Qe3 {[%clk 0:00:14]}  Ne4 {[%clk 0:00:01]} 46. h4 {[%clk 0:00:14]}  Nd6 {[%clk 0:00:02]} 47. Ne6+ {[%clk 0:00:14]}  Kf7 {[%clk 0:00:01]} 48. Nf4 {[%clk 0:00:15]}  Qe5 {[%clk 0:00:01]} 49. Qc3 {[%clk 0:00:15]}  Qxc3 {[%clk 0:00:01]} 50. bxc3 {[%clk 0:00:15]}  Nb5 {[%clk 0:00:02]} 51. c4 {[%clk 0:00:15]}  Nd6 {[%clk 0:00:03]} 52. c5 {[%clk 0:00:15]}  Ne4 {[%clk 0:00:03]} 53. Nd3 {[%clk 0:00:13]}  a5 {[%clk 0:00:04]} 54. Kg2 {[%clk 0:00:12]}  a4 {[%clk 0:00:04]} 55. f3 {[%clk 0:00:13]}  Nc3 {[%clk 0:00:04]} 56. Kf2 {[%clk 0:00:13]}  Ke7 {[%clk 0:00:05]} 57. Nb4 {[%clk 0:00:12]}  Kd7 {[%clk 0:00:05]} 58. Ke3 {[%clk 0:00:13]}  a3 {[%clk 0:00:05]} 59. Kd3 {[%clk 0:00:13]}  a2 {[%clk 0:00:05]} 60. Nc2 {[%clk 0:00:12]}  Na4 {[%clk 0:00:06]} 61. Kc4 {[%clk 0:00:11]}  Kc6 {[%clk 0:00:06]} 62. Nb4+ {[%clk 0:00:11]}  Kd7 {[%clk 0:00:07]} 63. Nxa2 {[%clk 0:00:11]}  Kc6 {[%clk 0:00:07]} 64. Nb4+ {[%clk 0:00:11]}  Kd7 {[%clk 0:00:07]} 65. Nd5 {[%clk 0:00:12]}  Ke6 {[%clk 0:00:07]} 66. Nf4+ {[%clk 0:00:12]}  Kf5 {[%clk 0:00:07]} 67. Kb5 {[%clk 0:00:13]}  Nc3+ {[%clk 0:00:07]} 68. Kb6 {[%clk 0:00:13]}  Na4+ {[%clk 0:00:07]} 69. Kb5 {[%clk 0:00:13]}  Nc3+ {[%clk 0:00:08]} 70. Kc4 {[%clk 0:00:14]}  Na4 {[%clk 0:00:08]} 71. Nd3 {[%clk 0:00:14]}  g5 {[%clk 0:00:07]} 72. hxg5 {[%clk 0:00:13]}  fxg5 {[%clk 0:00:08]} 73. Kb4 {[%clk 0:00:14]}  h4 {[%clk 0:00:06]} 74. g4+ {[%clk 0:00:13]}  Ke6 {[%clk 0:00:06]} 75. Kxa4 {[%clk 0:00:13]}  Kd5 {[%clk 0:00:06]} 76. Kb5 {[%clk 0:00:13]}  h3 {[%clk 0:00:06]} 77. Nf2 {[%clk 0:00:13]}  Kd4 {[%clk 0:00:06]} 78. Kb6 {[%clk 0:00:12]}  h2 {[%clk 0:00:05]} 79. Nh1 {[%clk 0:00:13]}  Ke3 {[%clk 0:00:05]} 80. Kxb7 {[%clk 0:00:12]}  Kxf3 {[%clk 0:00:06]} 81. c6 {[%clk 0:00:13]}  Kg2 {[%clk 0:00:06]} 82. c7 {[%clk 0:00:14]}  Kxh1 {[%clk 0:00:06]} 83. c8=Q {[%clk 0:00:15]}  Kg2 {[%clk 0:00:07]} 84. Qc6+ {[%clk 0:00:15]}  Kg1 {[%clk 0:00:07]} 85. Qc5+ {[%clk 0:00:16]}  Kg2 {[%clk 0:00:07]} 86. Qd5+ {[%clk 0:00:16]}  Kg1 {[%clk 0:00:07]} 87. Qd4+ {[%clk 0:00:16]}  Kg2 {[%clk 0:00:07]} 88. Qe4+ {[%clk 0:00:16]}  Kg1 {[%clk 0:00:08]} 89. Qe3+ {[%clk 0:00:15]}  Kg2 {[%clk 0:00:08]} 90. Qd2+ {[%clk 0:00:15]}  Kg1 {[%clk 0:00:07]} 91. Qxg5 {[%clk 0:00:15]}  h1=Q+ {[%clk 0:00:07]} 92. Kc7 {[%clk 0:00:16]}  Kf2 {[%clk 0:00:07]} 93. Kd7 {[%clk 0:00:16]}  Kf3 {[%clk 0:00:00]} 94. Qd5+ {[%clk 0:00:15]} 1-0


[Site "https://www.chess.com"]

[Event "Titled Tuesday Blitz June 13 Late 2023"]
[White "marik_spb"]
[Black "Sieciechowicz, Marcin"]
[BlackFideId "1130170"]
[WhiteElo "2478"]
[BlackElo "2301"]
[Result "0-1"]
[Round "6"]
[TimeControl "180+2"]
[Date "2023.06.13"]
[WhiteClock "0:00:00"]
[BlackClock "0:01:13"]
[Board "66"]

1. e4 {[%clk 0:01:31]}  e6 {[%clk 0:02:57]} 2. d4 {[%clk 0:01:31]}  d5 {[%clk 0:02:58]} 3. e5 {[%clk 0:01:31]}  c5 {[%clk 0:02:57]} 4. c3 {[%clk 0:01:32]}  Qb6 {[%clk 0:02:58]} 5. Nf3 {[%clk 0:01:33]}  Nc6 {[%clk 0:02:59]} 6. a3 {[%clk 0:01:34]}  c4 {[%clk 0:02:59]} 7. Qc2 {[%clk 0:01:32]}  Na5 {[%clk 0:02:58]} 8. Nbd2 {[%clk 0:01:33]}  Bd7 {[%clk 0:02:58]} 9. Be2 {[%clk 0:01:33]}  O-O-O {[%clk 0:02:58]} 10. O-O {[%clk 0:01:33]}  h6 {[%clk 0:02:59]} 11. Ne1 {[%clk 0:01:32]}  Kb8 {[%clk 0:02:59]} 12. f4 {[%clk 0:01:31]}  Ne7 {[%clk 0:02:56]} 13. Rb1 {[%clk 0:01:31]}  Qc7 {[%clk 0:02:56]} 14. Bd1 {[%clk 0:01:23]}  Nc8 {[%clk 0:02:54]} 15. b4 {[%clk 0:01:23]}  cxb3 {[%clk 0:02:54]} 16. Nxb3 {[%clk 0:01:24]}  Ba4 {[%clk 0:02:52]} 17. Qd3 {[%clk 0:01:17]}  Nxb3 {[%clk 0:02:50]} 18. Bxb3 {[%clk 0:01:18]}  Bxb3 {[%clk 0:02:50]} 19. Rxb3 {[%clk 0:01:18]}  Nb6 {[%clk 0:02:51]} 20. f5 {[%clk 0:01:09]}  Qc4 {[%clk 0:02:22]} 21. Qxc4 {[%clk 0:01:03]}  Nxc4 {[%clk 0:02:23]} 22. fxe6 {[%clk 0:01:03]}  fxe6 {[%clk 0:02:24]} 23. Rf7 {[%clk 0:01:02]}  Nb6 {[%clk 0:02:24]} 24. a4 {[%clk 0:00:57]}  Rd7 {[%clk 0:02:24]} 25. Rxd7 {[%clk 0:00:56]}  Nxd7 {[%clk 0:02:25]} 26. Nd3 {[%clk 0:00:55]}  g5 {[%clk 0:02:21]} 27. Ba3 {[%clk 0:00:52]}  Bxa3 {[%clk 0:02:19]} 28. Rxa3 {[%clk 0:00:53]}  Rf8 {[%clk 0:02:03]} 29. Ra2 {[%clk 0:00:49]}  Kc7 {[%clk 0:02:01]} 30. Rf2 {[%clk 0:00:48]}  Kb6 {[%clk 0:01:43]} 31. Nc5 {[%clk 0:00:37]}  Rxf2 {[%clk 0:01:28]} 32. Nxd7+ {[%clk 0:00:37]}  Kc7 {[%clk 0:01:28]} 33. Kxf2 {[%clk 0:00:38]}  Kxd7 {[%clk 0:01:28]} 34. Kf3 {[%clk 0:00:27]}  a5 {[%clk 0:01:27]} 35. Ke3 {[%clk 0:00:25]}  Kc6 {[%clk 0:01:27]} 36. Kd3 {[%clk 0:00:02]}  b5 {[%clk 0:01:27]} 37. c4 {[%clk 0:00:01]}  dxc4+ {[%clk 0:01:20]} 38. Kc2 {[%clk 0:00:00]}  b4 {[%clk 0:01:13]} 0-1


[Site "https://www.chess.com"]

[Event "Titled Tuesday Blitz June 13 Late 2023"]
[White "Vlassov, Nikolai"]
[Black "Sztokbant, Bernardo Vainzoff"]
[WhiteFideId "4103360"]
[BlackFideId "2115956"]
[WhiteElo "2324"]
[BlackElo "2222"]
[Result "0-1"]
[Round "6"]
[TimeControl "180+2"]
[Date "2023.06.13"]
[WhiteClock "0:00:10"]
[BlackClock "0:00:11"]
[Board "67"]

1. e4 {[%clk 0:03:00]}  e5 {[%clk 0:02:59]} 2. Bc4 {[%clk 0:03:00]}  Nf6 {[%clk 0:02:59]} 3. d3 {[%clk 0:03:00]}  Nc6 {[%clk 0:02:59]} 4. Nf3 {[%clk 0:02:59]}  Bc5 {[%clk 0:02:59]} 5. Bg5 {[%clk 0:02:59]}  h6 {[%clk 0:02:59]} 6. Bh4 {[%clk 0:02:58]}  d6 {[%clk 0:02:58]} 7. Nc3 {[%clk 0:02:58]}  Be6 {[%clk 0:02:55]} 8. Nd2 {[%clk 0:02:57]}  Nd4 {[%clk 0:02:46]} 9. Nd5 {[%clk 0:02:53]}  g5 {[%clk 0:02:43]} 10. Bg3 {[%clk 0:02:52]}  b5 {[%clk 0:02:28]} 11. c3 {[%clk 0:02:38]}  bxc4 {[%clk 0:02:27]} 12. cxd4 {[%clk 0:02:38]}  Bxd4 {[%clk 0:02:27]} 13. Nxf6+ {[%clk 0:02:11]}  Qxf6 {[%clk 0:02:27]} 14. Qa4+ {[%clk 0:02:10]}  Kd8 {[%clk 0:02:11]} 15. Nxc4 {[%clk 0:02:06]}  h5 {[%clk 0:02:06]} 16. h4 {[%clk 0:02:05]}  g4 {[%clk 0:02:02]} 17. O-O {[%clk 0:02:03]}  Rb8 {[%clk 0:02:00]} 18. Kh2 {[%clk 0:01:57]}  Bd7 {[%clk 0:01:55]} 19. Qc2 {[%clk 0:01:50]}  Qe7 {[%clk 0:01:46]} 20. Rab1 {[%clk 0:01:44]}  f5 {[%clk 0:01:44]} 21. exf5 {[%clk 0:01:42]}  Rf8 {[%clk 0:01:41]} 22. Ne3 {[%clk 0:01:41]}  Bxf5 {[%clk 0:01:36]} 23. b4 {[%clk 0:01:18]}  Be6 {[%clk 0:01:36]} 24. a4 {[%clk 0:01:15]}  Rf4 {[%clk 0:00:58]} 25. b5 {[%clk 0:01:08]}  Qf7 {[%clk 0:00:55]} 26. Bxf4 {[%clk 0:00:57]}  exf4 {[%clk 0:00:55]} 27. Nc4 {[%clk 0:00:55]}  g3+ {[%clk 0:00:49]} 28. fxg3 {[%clk 0:00:52]}  fxg3+ {[%clk 0:00:50]} 29. Kxg3 {[%clk 0:00:46]}  Qg6+ {[%clk 0:00:38]} 30. Kh2 {[%clk 0:00:35]}  Kd7 {[%clk 0:00:38]} 31. Rf4 {[%clk 0:00:24]}  Bc5 {[%clk 0:00:29]} 32. Rbf1 {[%clk 0:00:16]}  Rg8 {[%clk 0:00:26]} 33. Qe2 {[%clk 0:00:16]}  Qg3+ {[%clk 0:00:21]} 34. Kh1 {[%clk 0:00:16]}  Bd5 {[%clk 0:00:16]} 35. d4 {[%clk 0:00:14]}  Qh3+ {[%clk 0:00:11]} 36. Kg1 {[%clk 0:00:10]}  Rxg2+ {[%clk 0:00:11]} 0-1


[Site "https://www.chess.com"]

[Event "Titled Tuesday Blitz June 13 Late 2023"]
[White "ArchibaldCerveza29"]
[Black "Adewumi, Tanitoluwa"]
[BlackFideId "30966396"]
[WhiteElo "2470"]
[BlackElo "2632"]
[Result "0-1"]
[Round "6"]
[TimeControl "180+2"]
[Date "2023.06.13"]
[WhiteClock "0:00:02"]
[BlackClock "0:00:05"]
[Board "68"]

1. e4 {[%clk 0:03:00]}  c5 {[%clk 0:03:00]} 2. c3 {[%clk 0:03:00]}  Nf6 {[%clk 0:02:59]} 3. e5 {[%clk 0:03:00]}  Nd5 {[%clk 0:03:00]} 4. d4 {[%clk 0:03:01]}  e6 {[%clk 0:03:00]} 5. Nf3 {[%clk 0:03:00]}  cxd4 {[%clk 0:03:00]} 6. cxd4 {[%clk 0:03:01]}  Nc6 {[%clk 0:03:01]} 7. Bc4 {[%clk 0:02:58]}  d6 {[%clk 0:03:00]} 8. O-O {[%clk 0:02:57]}  Qc7 {[%clk 0:02:50]} 9. Qe2 {[%clk 0:02:50]}  Be7 {[%clk 0:02:32]} 10. Bxd5 {[%clk 0:02:18]}  exd5 {[%clk 0:02:29]} 11. Nc3 {[%clk 0:02:19]}  Be6 {[%clk 0:02:27]} 12. Nb5 {[%clk 0:02:15]}  Qd7 {[%clk 0:02:19]} 13. exd6 {[%clk 0:02:14]}  Bxd6 {[%clk 0:02:20]} 14. Nxd6+ {[%clk 0:01:38]}  Qxd6 {[%clk 0:02:21]} 15. Re1 {[%clk 0:01:30]}  O-O {[%clk 0:02:11]} 16. h3 {[%clk 0:01:30]}  Rae8 {[%clk 0:02:11]} 17. Be3 {[%clk 0:01:27]}  Bf5 {[%clk 0:02:10]} 18. Qb5 {[%clk 0:01:23]}  b6 {[%clk 0:02:01]} 19. Rac1 {[%clk 0:01:21]}  Na5 {[%clk 0:01:28]} 20. Bd2 {[%clk 0:00:41]}  Rxe1+ {[%clk 0:01:05]} 21. Rxe1 {[%clk 0:00:42]}  Nc6 {[%clk 0:00:54]} 22. Rc1 {[%clk 0:00:33]}  Rc8 {[%clk 0:00:47]} 23. Ne5 {[%clk 0:00:18]}  Nxd4 {[%clk 0:00:35]} 24. Rxc8+ {[%clk 0:00:18]}  Bxc8 {[%clk 0:00:35]} 25. Qe8+ {[%clk 0:00:13]}  Qf8 {[%clk 0:00:35]} 26. Qa4 {[%clk 0:00:14]}  Ne6 {[%clk 0:00:04]} 27. Bb4 {[%clk 0:00:14]}  Qd8 {[%clk 0:00:04]} 28. Nc6 {[%clk 0:00:13]}  Qd7 {[%clk 0:00:03]} 29. Ne7+ {[%clk 0:00:13]}  Kh8 {[%clk 0:00:03]} 30. Qxd7 {[%clk 0:00:10]}  Bxd7 {[%clk 0:00:03]} 31. Nxd5 {[%clk 0:00:11]}  f6 {[%clk 0:00:03]} 32. Kf1 {[%clk 0:00:08]}  Kg8 {[%clk 0:00:03]} 33. Ke1 {[%clk 0:00:08]}  Kf7 {[%clk 0:00:03]} 34. Kd2 {[%clk 0:00:09]}  Nd4 {[%clk 0:00:03]} 35. Nc3 {[%clk 0:00:08]}  Be6 {[%clk 0:00:03]} 36. a3 {[%clk 0:00:06]}  a5 {[%clk 0:00:01]} 37. Bd6 {[%clk 0:00:06]}  Ke8 {[%clk 0:00:01]} 38. Bc7 {[%clk 0:00:06]}  Nb3+ {[%clk 0:00:01]} 39. Kc2 {[%clk 0:00:06]}  b5 {[%clk 0:00:01]} 40. Nxb5 {[%clk 0:00:05]}  a4 {[%clk 0:00:02]} 41. Nc3 {[%clk 0:00:05]}  Bf5+ {[%clk 0:00:02]} 42. Kd1 {[%clk 0:00:04]}  Bd7 {[%clk 0:00:03]} 43. Bd6 {[%clk 0:00:04]}  Bc6 {[%clk 0:00:03]} 44. Bb4 {[%clk 0:00:04]}  Kd7 {[%clk 0:00:04]} 45. f3 {[%clk 0:00:05]}  g6 {[%clk 0:00:04]} 46. Ke2 {[%clk 0:00:05]}  Ke6 {[%clk 0:00:05]} 47. Kf2 {[%clk 0:00:06]}  Nd4 {[%clk 0:00:05]} 48. Ne2 {[%clk 0:00:06]}  Nb3 {[%clk 0:00:05]} 49. Nf4+ {[%clk 0:00:06]}  Ke5 {[%clk 0:00:04]} 50. Nd3+ {[%clk 0:00:07]}  Kd5 {[%clk 0:00:05]} 51. Nf4+ {[%clk 0:00:07]}  Kd4 {[%clk 0:00:05]} 52. Ne6+ {[%clk 0:00:07]}  Kd3 {[%clk 0:00:04]} 53. Nf8 {[%clk 0:00:08]}  Kc2 {[%clk 0:00:04]} 54. Nxh7 {[%clk 0:00:08]}  Kxb2 {[%clk 0:00:05]} 55. Nxf6 {[%clk 0:00:08]}  Nc1 {[%clk 0:00:04]} 56. Ke3 {[%clk 0:00:07]}  Kb3 {[%clk 0:00:04]} 57. Ne4 {[%clk 0:00:07]}  Na2 {[%clk 0:00:04]} 58. Nc5+ {[%clk 0:00:06]}  Kc4 {[%clk 0:00:04]} 59. Na6 {[%clk 0:00:05]}  Bb5 {[%clk 0:00:04]} 60. Nc7 {[%clk 0:00:05]}  Nxb4 {[%clk 0:00:04]} 61. axb4 {[%clk 0:00:06]}  a3 {[%clk 0:00:04]} 62. Ne6 {[%clk 0:00:02]}  a2 {[%clk 0:00:04]} 63. Nd4 {[%clk 0:00:02]}  a1=Q {[%clk 0:00:05]} 64. Nc2 {[%clk 0:00:01]}  Qc3+ {[%clk 0:00:05]} 65. Kf4 {[%clk 0:00:02]}  Qxc2 {[%clk 0:00:06]} 66. Kg4 {[%clk 0:00:03]}  Qf5+ {[%clk 0:00:06]} 67. Kh4 {[%clk 0:00:03]}  Qf4+ {[%clk 0:00:07]} 68. g4 {[%clk 0:00:04]}  Be8 {[%clk 0:00:04]} 69. b5 {[%clk 0:00:02]}  g5# {[%clk 0:00:05]} 0-1


[Site "https://www.chess.com"]

[Event "Titled Tuesday Blitz June 13 Late 2023"]
[White "ATM622"]
[Black "Buchenau, Frank"]
[BlackFideId "4604350"]
[WhiteElo "2603"]
[BlackElo "2157"]
[Result "1-0"]
[Round "6"]
[TimeControl "180+2"]
[Date "2023.06.13"]
[WhiteClock "0:01:18"]
[BlackClock "0:00:00"]
[Board "72"]

1. d4 {[%clk 0:03:00]}  e6 {[%clk 0:02:58]} 2. c4 {[%clk 0:03:00]}  Nf6 {[%clk 0:02:56]} 3. g3 {[%clk 0:03:00]}  d5 {[%clk 0:02:54]} 4. Bg2 {[%clk 0:03:00]}  c5 {[%clk 0:02:55]} 5. Nf3 {[%clk 0:02:59]}  cxd4 {[%clk 0:02:52]} 6. Nxd4 {[%clk 0:02:59]}  e5 {[%clk 0:02:51]} 7. Nf3 {[%clk 0:02:56]}  d4 {[%clk 0:02:51]} 8. O-O {[%clk 0:02:54]}  Nc6 {[%clk 0:02:51]} 9. Nbd2 {[%clk 0:02:45]}  Be7 {[%clk 0:02:48]} 10. a3 {[%clk 0:02:31]}  a5 {[%clk 0:02:47]} 11. Ne1 {[%clk 0:02:29]}  O-O {[%clk 0:02:45]} 12. Qc2 {[%clk 0:02:29]}  a4 {[%clk 0:02:39]} 13. f4 {[%clk 0:02:26]}  Ng4 {[%clk 0:02:33]} 14. Ndf3 {[%clk 0:02:22]}  g6 {[%clk 0:02:14]} 15. h3 {[%clk 0:02:14]}  Bf5 {[%clk 0:02:13]} 16. Nd3 {[%clk 0:02:11]}  e4 {[%clk 0:02:04]} 17. hxg4 {[%clk 0:02:09]}  exd3 {[%clk 0:02:01]} 18. exd3 {[%clk 0:02:10]}  Bxg4 {[%clk 0:01:59]} 19. Bd2 {[%clk 0:02:07]}  Qd7 {[%clk 0:01:57]} 20. Rae1 {[%clk 0:02:02]}  Rfe8 {[%clk 0:01:57]} 21. Ne5 {[%clk 0:02:00]}  Nxe5 {[%clk 0:01:55]} 22. fxe5 {[%clk 0:02:01]}  Bh3 {[%clk 0:01:49]} 23. Bd5 {[%clk 0:01:58]}  Be6 {[%clk 0:01:35]} 24. Bxe6 {[%clk 0:01:54]}  Qxe6 {[%clk 0:01:31]} 25. Re4 {[%clk 0:01:51]}  Qh3 {[%clk 0:01:23]} 26. Bf4 {[%clk 0:01:45]}  g5 {[%clk 0:01:20]} 27. Bc1 {[%clk 0:01:41]}  Qxg3+ {[%clk 0:01:19]} 28. Qg2 {[%clk 0:01:40]}  Qxg2+ {[%clk 0:01:16]} 29. Kxg2 {[%clk 0:01:41]}  h6 {[%clk 0:01:02]} 30. Rxd4 {[%clk 0:01:39]}  Rad8 {[%clk 0:01:02]} 31. Rd5 {[%clk 0:01:31]}  Rxd5 {[%clk 0:00:41]} 32. cxd5 {[%clk 0:01:31]}  Bc5 {[%clk 0:00:31]} 33. Re1 {[%clk 0:01:32]}  Rd8 {[%clk 0:00:15]} 34. d6 {[%clk 0:01:30]}  Re8 {[%clk 0:00:11]} 35. Be3 {[%clk 0:01:27]}  Bxe3 {[%clk 0:00:10]} 36. Rxe3 {[%clk 0:01:28]}  Re6 {[%clk 0:00:08]} 37. d4 {[%clk 0:01:27]}  Kf8 {[%clk 0:00:07]} 38. d5 {[%clk 0:01:24]}  Rg6 {[%clk 0:00:07]} 39. d7 {[%clk 0:01:19]}  Ke7 {[%clk 0:00:06]} 40. e6 {[%clk 0:01:19]}  fxe6 {[%clk 0:00:00]} 41. dxe6 {[%clk 0:01:18]} 1-0


[Site "https://www.chess.com"]

[Event "Titled Tuesday Blitz June 13 Late 2023"]
[White "Feng, Eric"]
[Black "Ozalp, Burak"]
[WhiteFideId "30952590"]
[BlackFideId "6314210"]
[WhiteElo "1785"]
[BlackElo "2106"]
[Result "1-0"]
[Round "6"]
[TimeControl "180+2"]
[Date "2023.06.13"]
[WhiteClock "0:02:05"]
[BlackClock "0:00:13"]
[Board "74"]

1. d4 {[%clk 0:02:42]}  Nf6 {[%clk 0:02:58]} 2. c4 {[%clk 0:02:42]}  g6 {[%clk 0:02:58]} 3. Nf3 {[%clk 0:02:42]}  Bg7 {[%clk 0:02:57]} 4. g3 {[%clk 0:02:42]}  O-O {[%clk 0:02:57]} 5. Bg2 {[%clk 0:02:43]}  d6 {[%clk 0:02:58]} 6. O-O {[%clk 0:02:43]}  Nc6 {[%clk 0:02:57]} 7. Nc3 {[%clk 0:02:43]}  a6 {[%clk 0:02:56]} 8. d5 {[%clk 0:02:43]}  Na5 {[%clk 0:02:56]} 9. Qd3 {[%clk 0:02:44]}  c5 {[%clk 0:02:50]} 10. e4 {[%clk 0:02:44]}  b5 {[%clk 0:02:41]} 11. cxb5 {[%clk 0:02:44]}  axb5 {[%clk 0:02:42]} 12. Nxb5 {[%clk 0:02:44]}  Ba6 {[%clk 0:02:38]} 13. a4 {[%clk 0:02:44]}  c4 {[%clk 0:02:34]} 14. Qe2 {[%clk 0:02:44]}  Nb3 {[%clk 0:02:28]} 15. Ra3 {[%clk 0:02:44]}  Nxc1 {[%clk 0:01:42]} 16. Rxc1 {[%clk 0:02:44]}  Bxb5 {[%clk 0:01:39]} 17. axb5 {[%clk 0:02:45]}  Rxa3 {[%clk 0:01:39]} 18. bxa3 {[%clk 0:02:46]}  Qa5 {[%clk 0:01:39]} 19. Qxc4 {[%clk 0:02:44]}  Qxa3 {[%clk 0:01:38]} 20. Rb1 {[%clk 0:02:43]}  Nd7 {[%clk 0:01:33]} 21. b6 {[%clk 0:02:36]}  Nc5 {[%clk 0:01:31]} 22. Nd4 {[%clk 0:02:20]}  Bxd4 {[%clk 0:01:29]} 23. Qxd4 {[%clk 0:02:21]}  Rb8 {[%clk 0:01:22]} 24. e5 {[%clk 0:02:21]}  Qa5 {[%clk 0:01:13]} 25. exd6 {[%clk 0:02:18]}  exd6 {[%clk 0:01:14]} 26. Qf6 {[%clk 0:02:17]}  Qd2 {[%clk 0:00:36]} 27. Qxd6 {[%clk 0:02:13]}  Na6 {[%clk 0:00:21]} 28. b7 {[%clk 0:02:11]}  Qd3 {[%clk 0:00:19]} 29. Rb6 {[%clk 0:02:08]}  Qd1+ {[%clk 0:00:16]} 30. Bf1 {[%clk 0:02:08]}  Re8 {[%clk 0:00:12]} 31. Rxa6 {[%clk 0:02:07]}  Re1 {[%clk 0:00:12]} 32. b8=Q+ {[%clk 0:02:07]}  Kg7 {[%clk 0:00:13]} 33. Qbf8# {[%clk 0:02:05]} 1-0


[Site "https://www.chess.com"]